[Event "FIDE WCCC Open-10 2024"]
[Site "Montesilvano"]
[Date "2024.11.22"]
[Round "7.8"]
[White "Kostyukovich, Ivan"]
[Black "Yao, Lucas Mason Pin Qian"]
[Result "0-1"]
[Annotator "NA RC"]
[ECO "B13"]
[WhiteElo "1489"]
[BlackElo "1687"]
[PlyCount "80"]
[EventDate "2024.11.18"]
[EventType "swiss"]
[EventCountry "ITA"]
[SourceTitle "playchess.com"]
[Source "ChessBase"]
[SourceQuality "1"]
[TimeControl "5400+30"]

1. d4 {[%emt 0:00:06]} d5 {[%emt 0:00:09]} 2. Bf4 {[%emt 0:00:06]} c5 {[%emt 0:00:17]} 3. e3 {[%emt 0:00:13]} cxd4 {[%emt 0:00:16]} 4. exd4 {[%emt 0:00:07]} Nc6 {[%emt 0:00:17]} 5. c3 {[%emt 0:00:18]} Bf5 {[%emt 0:00:42]} 6. Nd2 {[%emt 0:00:18]} e6 {[%emt 0:00:53]} 7. Ngf3 {[%emt 0:00:12]} h6 {[%emt 0:01:46]} 8. Bb5 {[%emt 0:01:38]} Qb6 9. Qa4 {[%emt 0:01:44]} a6 {[%emt 0:04:40]} 10. Bxc6+ {[%emt 0:00:30]} Qxc6 {[%emt 0:05:41]} 11. Qxc6+ {[%emt 0:00:24]} bxc6 {[%emt 0:00:09]} 12. O-O {[%emt 0:01:19]} Nf6 {[%emt 0:01:08]} 13. Nb3 {[%emt 0:02:51]} Nd7 {[%emt 0:04:38]} 14. Na5 {[%emt 0:07:30]} c5 {[%emt 0:06:13]} 15. Ne5 {[%emt 0:04:59]} Nxe5 {[%emt 0:01:33]} 16. Bxe5 {[%emt 0:00:24]} f6 {[%emt 0:06:38]} 17. Bg3 {[%emt 0:00:13]} O-O-O {[%emt 0:03:26]} 18. dxc5 {[%emt 0:02:42]} Bxc5 {[%emt 0:01:53]} 19. Nb3 {[%emt 0:00:25]} Bb6 {[%emt 0:02:13]} 20. Nd4 {[%emt 0:00:29]} Bxd4 {[%emt 0:00:47]} 21. cxd4 {[%emt 0:02:30]} Kd7 {[%emt 0:01:27]} 22. Rac1 {[%emt 0:00:51]} Rc8 {[%emt 0:00:11]} 23. Rc5 {[%emt 0:00:35]} Rxc5 {[%emt 0:01:37]} 24. dxc5 {[%emt 0:00:18]} Kc6 {[%emt 0:01:02]} 25. Bd6 {[%emt 0:00:14]} e5 {[%emt 0:02:30]} 26. Rc1 {[%emt 0:01:43]} d4 {[%emt 0:01:26]} 27. f3 {[%emt 0:01:07]} Kd5 {[%emt 0:01:10]} 28. Kf2 {[%emt 0:00:31]} Bd3 {[%emt 0:00:37]} 29. Ke1 {[%emt 0:00:40]} Bb5 {[%emt 0:00:28]} 30. Kd2 {[%emt 0:00:37]} f5 {[%emt 0:01:26]} 31. b3 {[%emt 0:02:42]} e4 {[%emt 0:02:28]} 32. fxe4+ {[%emt 1:08:14]} fxe4 {[%emt 0:00:16]} 33. a4 {[%emt 0:00:00]} e3+ {[%emt 0:00:10]} 34. Ke1 {[%emt 0:00:00]} d3 {[%emt 0:02:57]} 35. Rc3 {[%emt 0:00:00]} d2+ {[%emt 0:02:28]} 36. Kd1 {[%emt 0:02:00]} Re8 {[%emt 0:01:04]} 37. Bg3 {[%emt 0:00:00]} Kd4 {[%emt 0:00:35]} 38. Rc4+ {[%emt 0:00:00]} Bxc4 {[%emt 0:00:10]} 39. bxc4 {[%emt 0:00:00]} Kd3 {[%emt 0:00:06]} 40. Bb8 {[%emt 0:00:00]} e2# {[%emt 0:00:06]} 0-1

[Event "FIDE WCCC Open-10 2024"]
[Site "Montesilvano"]
[Date "2024.11.22"]
[Round "7.9"]
[White "Bolashakov, Nurali"]
[Black "Jani, Aakash"]
[Result "1-0"]
[Annotator "NA RC"]
[ECO "C60"]
[WhiteElo "2005"]
[BlackElo "1810"]
[PlyCount "147"]
[EventDate "2024.11.18"]
[EventType "swiss"]
[EventCountry "ITA"]
[SourceTitle "playchess.com"]
[Source "ChessBase"]
[SourceQuality "1"]
[TimeControl "5400+30"]

1. e4 {[%emt 0:00:08]} e5 {[%emt 0:00:20]} 2. Nf3 {[%emt 0:00:23]} Nc6 {[%emt 0:00:55]} 3. Bb5 {[%emt 0:00:40]} Nge7 {[%emt 0:00:54]} 4. Nc3 {[%emt 0:01:03]} a6 {[%emt 0:02:59]} 5. Bc4 {[%emt 0:02:15]} Ng6 {[%emt 0:01:13]} 6. h4 {[%emt 0:04:47]} h6 {[%emt 0:03:18]} 7. h5 {[%emt 0:04:37]} Nge7 {[%emt 0:08:15]} 8. d3 {[%emt 0:05:11]} d6 {[%emt 0:01:26]} 9. a3 {[%emt 0:00:23]} Bg4 {[%emt 0:02:26]} 10. Rh4 {[%emt 0:01:52]} Be6 {[%emt 0:03:14]} 11. Bxe6 {[%emt 0:01:16]} fxe6 {[%emt 0:00:13]} 12. Ne2 {[%emt 0:08:23]} Qd7 $11 {[%emt 0:02:26]} 13. b3 {[%emt 0:01:59]} O-O-O {[%emt 0:00:42]} 14. Bb2 {[%emt 0:00:14]} Ng8 {[%emt 0:03:30]} 15. Ng3 {[%emt 0:10:23]} Nf6 {[%emt 0:02:07]} 16. Qe2 {[%emt 0:01:04]} Be7 {[%emt 0:04:40]} 17. O-O-O {[%emt 0:02:55]} Rde8 {[%emt 0:01:33]} 18. Kb1 {[%emt 0:07:13]} d5 {[%emt 0:01:58]} 19. Rh3 {[%emt 0:05:38]} Bd6 {[%emt 0:03:33]} 20. d4 {[%emt 0:09:49]} dxe4 {[%emt 0:15:57]} 21. Nxe5 {[%emt 0:01:36]} Bxe5 {[%emt 0:05:51]} 22. dxe5 {[%emt 0:00:27]} Nd5 {[%emt 0:00:06]} 23. Nxe4 {[%emt 0:06:04]} Qf7 {[%emt 0:01:37]} 24. Qg4 {[%emt 0:05:30]} Kb8 {[%emt 0:01:29]} 25. Rf3 {[%emt 0:00:58]} Qe7 {[%emt 0:00:49]} 26. c4 {[%emt 0:00:36]} Nb6 {[%emt 0:00:45]} 27. Qg6 {[%emt 0:01:58]} Rhf8 {[%emt 0:01:06]} 28. Rg3 {[%emt 0:04:55]} Rf5 {[%emt 0:03:42]} 29. Qxg7 {[%emt 0:01:33]} Qxg7 {[%emt 0:00:24]} 30. Rxg7 {[%emt 0:00:04]} Nxe5 {[%emt 0:01:02]} 31. g4 {[%emt 0:00:28]} Rf4 {[%emt 0:02:09]} 32. Bxe5 {[%emt 0:00:05]} Rxe4 {[%emt 0:00:07]} 33. Bxc7+ {[%emt 0:00:03]} Ka7 {[%emt 0:00:09]} 34. Bxb6+ {[%emt 0:01:10]} Kxb6 {[%emt 0:00:04]} 35. Rdd7 {[%emt 0:00:04]} Rb8 {[%emt 0:00:28]} 36. Kc2 {[%emt 0:01:53]} Re2+ {[%emt 0:00:15]} 37. Rd2 {[%emt 0:00:04]} Re4 {[%emt 0:00:15]} 38. f3 {[%emt 0:00:19]} Re3 {[%emt 0:00:12]} 39. Rd3 {[%emt 0:00:20]} Re5 {[%emt 0:00:11]} 40. Rf7 {[%emt 0:00:13]} Rc8 {[%emt 0:00:36]} 41. Rdd7 {[%emt 0:00:19]} Rb8 {[%emt 0:00:10]} 42. Kc3 {[%emt 0:00:38]} a5 {[%emt 0:00:19]} 43. b4 {[%emt 0:01:03]} axb4+ {[%emt 0:00:11]} 44. axb4 {[%emt 0:00:05]} Ka7 {[%emt 0:00:15]} 45. c5 {[%emt 0:00:27]} Ka6 {[%emt 0:00:24]} 46. Rd6+ {[%emt 0:00:12]} Ka7 {[%emt 0:00:14]} 47. Rd2 {[%emt 0:00:45]} Re3+ {[%emt 0:00:11]} 48. Kc4 {[%emt 0:00:13]} Ra3 {[%emt 0:00:06]} 49. c6 {[%emt 0:00:58]} Kb6 {[%emt 0:00:21]} 50. Rxb7+ {[%emt 0:00:07]} Rxb7 {[%emt 0:00:10]} 51. cxb7 {[%emt 0:00:04]} Kxb7 {[%emt 0:00:20]} 52. Rd3 {[%emt 0:00:09]} Ra8 {[%emt 0:00:06]} 53. Kb5 {[%emt 0:00:14]} Rc8 {[%emt 0:00:07]} 54. Rd7+ {[%emt 0:00:07]} Kb8 {[%emt 0:00:13]} 55. Kb6 {[%emt 0:00:12]} Ka8 {[%emt 0:00:08]} 56. b5 {[%emt 0:00:11]} Kb8 {[%emt 0:00:06]} 57. Re7 {[%emt 0:00:28]} Ka8 {[%emt 0:00:08]} 58. Ka6 {[%emt 0:00:07]} Kb8 {[%emt 0:00:05]} 59. b6 {[%emt 0:00:04]} Rf8 {[%emt 0:00:12]} 60. Rxe6 {[%emt 0:00:14]} Ka8 {[%emt 0:00:08]} 61. Rxh6 {[%emt 0:00:59]} Rg8 {[%emt 0:00:45]} 62. Rc6 {[%emt 0:00:08]} Rb8 {[%emt 0:00:13]} 63. Rc8 {[%emt 0:00:11]} Rxc8 {[%emt 0:00:05]} 64. b7+ {[%emt 0:00:03]} Kb8 {[%emt 0:00:06]} 65. bxc8=Q+ {[%emt 0:00:07]} Kxc8 {[%emt 0:00:14]} 66. h6 {[%emt 0:00:04]} Kc7 {[%emt 0:00:07]} 67. h7 {[%emt 0:00:03]} Kd7 {[%emt 0:00:05]} 68. h8=Q {[%emt 0:00:05]} Ke7 {[%emt 0:00:07]} 69. Qe5+ {[%emt 0:00:06]} Kf8 {[%emt 0:00:28]} 70. Qf6+ {[%emt 0:00:06]} Ke8 {[%emt 0:00:06]} 71. Qg7 {[%emt 0:00:05]} Kd8 {[%emt 0:00:05]} 72. Kb7 {[%emt 0:00:05]} Ke8 {[%emt 0:00:04]} 73. Kc6 {[%emt 0:00:07]} Kd8 {[%emt 0:00:03]} 74. Qf8# {[%emt 0:00:06]} 1-0

[Event "FIDE WCCC Open-10 2024"]
[Site "Montesilvano"]
[Date "2024.11.22"]
[Round "7.9"]
[White "Friscic, Jakov"]
[Black "Chen, Pin-Jui"]
[Result "0-1"]
[Annotator "NA RC"]
[ECO "D13"]
[WhiteElo "1685"]
[BlackElo "1505"]
[PlyCount "120"]
[EventDate "2024.11.18"]
[EventType "swiss"]
[EventCountry "ITA"]
[SourceTitle "playchess.com"]
[Source "ChessBase"]
[SourceQuality "1"]
[TimeControl "5400+30"]

1. d4 {[%emt 0:00:03]} d5 {[%emt 0:00:03]} 2. c4 {[%emt 0:00:10]} c6 {[%emt 0:00:06]} 3. cxd5 {[%emt 0:00:04]} cxd5 {[%emt 0:00:05]} 4. Nc3 {[%emt 0:00:22]} Nf6 {[%emt 0:00:11]} 5. Bf4 {[%emt 0:00:10]} e6 {[%emt 0:01:14]} 6. e3 {[%emt 0:00:29]} Bd6 {[%emt 0:01:44]} 7. Bxd6 {[%emt 0:01:38]} Qxd6 {[%emt 0:00:07]} 8. Nf3 {[%emt 1:31:34]} Nc6 {[%emt 0:03:34]} 9. a3 {[%emt 0:00:00]} O-O {[%emt 0:04:08]} 10. Bd3 {[%emt 0:00:00]} b6 {[%emt 0:05:32]} 11. O-O {[%emt 0:00:00]} Bb7 {[%emt 0:00:09]} 12. Rc1 {[%emt 0:02:00]} Rfe8 {[%emt 0:13:04]} 13. Nb5 {[%emt 0:00:00]} Qe7 {[%emt 0:00:40]} 14. Ne5 {[%emt 0:00:00]} Rec8 {[%emt 0:06:49]} 15. Nxc6 {[%emt 0:00:00]} Rxc6 {[%emt 0:03:42]} 16. Rxc6 {[%emt 0:00:00]} Bxc6 {[%emt 0:00:39]} 17. Qc2 {[%emt 0:00:00]} Qd7 {[%emt 0:02:11]} 18. Nc3 {[%emt 0:00:00]} Rc8 {[%emt 0:07:33]} 19. Rc1 {[%emt 0:00:00]} h6 {[%emt 0:13:37]} 20. Ba6 {[%emt 0:00:00]} Bb7 {[%emt 0:00:31]} 21. Bxb7 {[%emt 0:00:00]} Qxb7 {[%emt 0:00:01]} 22. f3 {[%emt 0:00:00]} a6 {[%emt 0:06:19]} 23. Qd2 {[%emt 0:00:00]} b5 {[%emt 0:07:50]} 24. Ne2 {[%emt 0:00:00]} Ne8 {[%emt 0:07:13]} 25. Rxc8 {[%emt 0:00:00]} Qxc8 {[%emt 0:00:07]} 26. Qc3 {[%emt 0:00:00]} Qb7 {[%emt 0:04:28]} 27. Qc5 {[%emt 0:00:00]} g6 {[%emt 0:02:44]} 28. b4 {[%emt 0:00:00]} Kg7 {[%emt 0:00:38]} 29. Nc1 {[%emt 0:00:00]} h5 {[%emt 0:08:07]} 30. Nb3 {[%emt 0:00:00]} f6 {[%emt 0:01:32]} 31. Kf2 {[%emt 0:00:00]} Kf7 {[%emt 0:00:04]} 32. Na5 {[%emt 0:00:00]} Qd7 {[%emt 0:00:12]} 33. Ke2 {[%emt 0:00:00]} Nc7 {[%emt 0:00:41]} 34. Nc6 {[%emt 0:00:00]} Ke8 {[%emt 0:00:16]} 35. Nb8 {[%emt 0:00:00]} Qc8 {[%emt 0:00:21]} 36. Qc6+ {[%emt 0:00:00]} Kf8 {[%emt 0:00:36]} 37. Nd7+ {[%emt 0:00:00]} Ke7 {[%emt 0:00:24]} 38. Nc5 {[%emt 0:00:00]} Kd8 {[%emt 0:01:23]} 39. Kd3 {[%emt 0:00:00]} g5 {[%emt 0:00:38]} 40. e4 {[%emt 0:00:00]} dxe4+ {[%emt 0:00:22]} 41. fxe4 {[%emt 0:00:00]} g4 {[%emt 0:00:51]} 42. g3 {[%emt 0:00:00]} f5 {[%emt 0:00:13]} 43. e5 {[%emt 0:00:00]} Ke7 {[%emt 0:00:35]} 44. Ke3 {[%emt 0:00:00]} Nd5+ {[%emt 0:00:10]} 45. Qxd5 {[%emt 0:00:00]} exd5 {[%emt 0:00:05]} 46. Kf4 {[%emt 0:00:00]} Kf7 {[%emt 0:00:24]} 47. Kg5 {[%emt 0:00:00]} Qg8+ {[%emt 0:00:11]} 48. Kxf5 {[%emt 0:00:00]} Qg6+ {[%emt 0:00:06]} 49. Kf4 {[%emt 0:00:00]} Qh6+ {[%emt 0:00:18]} 50. Kf5 {[%emt 0:00:00]} Qd2 {[%emt 0:00:08]} 51. e6+ {[%emt 0:00:00]} Ke7 {[%emt 0:00:05]} 52. Nxa6 {[%emt 0:00:00]} Qxh2 {[%emt 0:00:09]} 53. Nc7 {[%emt 0:00:00]} Qc2+ {[%emt 0:00:06]} 54. Kg5 {[%emt 0:00:00]} Qxc7 {[%emt 0:00:05]} 55. Kxh5 {[%emt 0:00:00]} Qxg3 {[%emt 0:00:07]} 56. a4 {[%emt 0:00:00]} Qf3 {[%emt 0:00:08]} 57. axb5 {[%emt 0:00:00]} g3+ {[%emt 0:00:04]} 58. Kh4 {[%emt 0:00:00]} g2 {[%emt 0:00:07]} 59. b6 {[%emt 0:00:00]} g1=R {[%emt 0:00:08]} 60. b7 {[%emt 0:00:00]} Qg4# {[%emt 0:00:04]} 0-1

[Event "FIDE WCCC Open-10 2024"]
[Site "Montesilvano"]
[Date "2024.11.22"]
[Round "7.10"]
[White "Tulegen, Ramazan"]
[Black "Zhauynbay, Alimzhan"]
[Result "1/2-1/2"]
[Annotator "NA RC"]
[ECO "E73"]
[WhiteElo "1818"]
[BlackElo "1953"]
[PlyCount "120"]
[EventDate "2024.11.18"]
[EventType "swiss"]
[EventCountry "ITA"]
[SourceTitle "playchess.com"]
[Source "ChessBase"]
[SourceQuality "1"]
[TimeControl "5400+30"]

1. d4 {[%emt 0:00:02]} Nf6 {[%emt 0:00:09]} 2. c4 {[%emt 0:00:11]} g6 {[%emt 0:00:04]} 3. Nc3 {[%emt 0:00:08]} Bg7 {[%emt 0:00:05]} 4. e4 {[%emt 0:00:09]} d6 {[%emt 0:00:03]} 5. Be2 {[%emt 0:00:07]} O-O {[%emt 0:03:39]} 6. Be3 {[%emt 0:00:08]} e5 {[%emt 0:09:27]} 7. d5 {[%emt 0:00:10]} Na6 {[%emt 0:04:21]} 8. h4 {[%emt 0:01:45]} Nc5 {[%emt 0:06:55]} 9. Qc2 {[%emt 0:00:45]} a5 {[%emt 0:04:05]} 10. h5 {[%emt 0:00:19]} c6 {[%emt 0:02:31]} 11. h6 {[%emt 0:00:08]} Bh8 {[%emt 0:00:04]} 12. Bxc5 {[%emt 0:00:08]} dxc5 {[%emt 0:00:21]} 13. O-O-O {[%emt 0:00:21]} cxd5 {[%emt 0:08:49]} 14. cxd5 {[%emt 0:00:23]} Bd7 {[%emt 0:03:42]} 15. Nf3 $14 {[%emt 0:09:42]} Ng4 {[%emt 0:05:23]} 16. Bb5 {[%emt 0:00:58]} Bxb5 {[%emt 0:01:53]} 17. Nxb5 {[%emt 0:00:11]} a4 {[%emt 0:07:09]} 18. d6 {[%emt 0:06:07]} Qb6 {[%emt 0:05:29]} 19. Na3 {[%emt 0:17:06]} Rfd8 {[%emt 0:07:42]} 20. Nc4 {[%emt 0:02:24]} Qa6 {[%emt 0:01:41]} 21. d7 {[%emt 0:23:16]} b5 {[%emt 0:07:16]} 22. Ne3 {[%emt 0:04:13]} Nxe3 {[%emt 0:01:50]} 23. fxe3 {[%emt 0:00:55]} c4 {[%emt 0:01:33]} 24. Qc3 {[%emt 0:08:12]} a3 {[%emt 0:04:01]} 25. bxa3 {[%emt 0:00:22]} Qxa3+ {[%emt 0:00:16]} 26. Qxa3 {[%emt 0:00:07]} Rxa3 {[%emt 0:00:01]} 27. Rd5 {[%emt 0:03:13]} Rxa2 {[%emt 0:04:32]} 28. Rxb5 {[%emt 0:01:37]} Ra1+ {[%emt 0:00:30]} 29. Rb1 {[%emt 0:00:08]} Rxb1+ {[%emt 0:00:07]} 30. Kxb1 {[%emt 0:00:14]} Rxd7 {[%emt 0:00:05]} 31. Kc2 {[%emt 0:00:11]} f5 {[%emt 0:02:30]} 32. Rb1 {[%emt 0:00:52]} Bf6 {[%emt 0:00:36]} 33. Nd2 {[%emt 0:00:47]} c3 {[%emt 0:01:03]} 34. Kxc3 {[%emt 0:00:54]} Bg5 {[%emt 0:01:41]} 35. Nc4 {[%emt 0:01:43]} Bxh6 {[%emt 0:00:20]} 36. Rb8+ {[%emt 0:01:08]} Kg7 {[%emt 0:00:58]} 37. Nxe5 {[%emt 0:05:32]} Re7 {[%emt 0:00:19]} 38. Rb5 {[%emt 0:01:54]} Bxe3 {[%emt 0:01:29]} 39. exf5 {[%emt 0:00:15]} gxf5 {[%emt 0:00:10]} 40. Nf3 {[%emt 0:00:29]} Kf6 {[%emt 0:01:02]} 41. Ra5 {[%emt 0:01:17]} Bf2 {[%emt 0:01:32]} 42. Ra6+ {[%emt 0:00:28]} Re6 {[%emt 0:00:48]} 43. Rxe6+ {[%emt 0:00:30]} Kxe6 {[%emt 0:00:01]} 44. Ng5+ {[%emt 0:01:32]} Ke5 {[%emt 0:01:35]} 45. Kd3 {[%emt 0:02:55]} h5 {[%emt 0:03:13]} 46. Ke2 {[%emt 0:00:06]} Ba7 {[%emt 0:00:52]} 47. Kf3 {[%emt 0:00:25]} h4 {[%emt 0:00:52]} 48. g3 {[%emt 0:01:31]} hxg3 {[%emt 0:00:04]} 49. Kxg3 {[%emt 0:00:06]} Be3 {[%emt 0:00:15]} 50. Nf3+ {[%emt 0:00:12]} Ke4 {[%emt 0:00:06]} 51. Nh4 {[%emt 0:00:16]} f4+ {[%emt 0:00:20]} 52. Kg4 {[%emt 0:00:17]} Bc5 {[%emt 0:00:41]} 53. Nf3 {[%emt 0:00:15]} Bb4 {[%emt 0:00:34]} 54. Ng1 {[%emt 0:00:24]} Ke3 {[%emt 0:00:15]} 55. Nf3 {[%emt 0:00:22]} Bc3 {[%emt 0:00:18]} 56. Nh4 {[%emt 0:00:17]} Ke4 {[%emt 0:00:15]} 57. Nf3 {[%emt 0:00:10]} Bf6 {[%emt 0:00:23]} 58. Nd2+ {[%emt 0:00:23]} Kd3 {[%emt 0:00:20]} 59. Kxf4 {[%emt 0:00:09]} Bg5+ {[%emt 0:00:03]} 60. Kxg5 {[%emt 0:00:10]} Kxd2 {[%emt 0:00:01]} 1/2-1/2

[Event "FIDE WCCC Open-10 2024"]
[Site "Montesilvano"]
[Date "2024.11.22"]
[Round "7.10"]
[White "Makhsatuly, Rakhim"]
[Black "Wu, Chenyu"]
[Result "1-0"]
[Annotator "NA RC"]
[ECO "C84"]
[WhiteElo "1683"]
[BlackElo "1503"]
[PlyCount "95"]
[EventDate "2024.11.18"]
[EventType "swiss"]
[EventCountry "ITA"]
[SourceTitle "playchess.com"]
[Source "ChessBase"]
[SourceQuality "1"]
[TimeControl "5400+30"]

1. e4 {[%emt 0:00:01]} e5 {[%emt 0:00:05]} 2. Nf3 {[%emt 0:00:03]} Nc6 {[%emt 0:00:05]} 3. Bb5 {[%emt 0:00:02]} a6 {[%emt 0:00:10]} 4. Ba4 {[%emt 0:00:05]} Nf6 {[%emt 0:00:04]} 5. d3 {[%emt 0:00:03]} b5 {[%emt 0:00:28]} 6. Bb3 {[%emt 0:00:06]} Be7 {[%emt 0:00:32]} 7. O-O {[%emt 0:01:17]} O-O {[%emt 0:00:14]} 8. a4 {[%emt 0:00:53]} b4 {[%emt 0:00:46]} 9. c3 {[%emt 0:01:38]} d6 {[%emt 0:00:54]} 10. Nbd2 {[%emt 0:03:25]} a5 {[%emt 0:02:11]} 11. Re1 {[%emt 0:02:51]} Be6 {[%emt 0:01:44]} 12. Bxe6 {[%emt 0:01:29]} fxe6 {[%emt 0:00:14]} 13. Nf1 {[%emt 0:00:52]} Nh5 {[%emt 0:05:36]} 14. d4 {[%emt 0:04:02]} bxc3 {[%emt 0:08:22]} 15. bxc3 {[%emt 0:00:41]} exd4 {[%emt 0:05:50]} 16. cxd4 {[%emt 0:00:51]} d5 {[%emt 0:02:32]} 17. e5 {[%emt 0:01:00]} Nf4 {[%emt 0:02:09]} 18. Bxf4 {[%emt 0:01:44]} Rxf4 {[%emt 0:00:31]} 19. Qc1 {[%emt 0:00:04]} Rxf3 {[%emt 0:04:29]} 20. Qxc6 {[%emt 0:03:02]} Rf4 {[%emt 0:04:15]} 21. Qxe6+ {[%emt 0:00:29]} Kh8 {[%emt 0:00:26]} 22. Red1 {[%emt 0:02:08]} Rb8 {[%emt 0:08:25]} 23. Ne3 {[%emt 0:00:49]} Rb2 {[%emt 0:10:38]} 24. f3 {[%emt 0:01:06]} Bh4 {[%emt 0:03:19]} 25. Qxd5 {[%emt 0:16:20]} Qxd5 {[%emt 0:01:43]} 26. Nxd5 {[%emt 0:00:08]} Bf2+ {[%emt 0:00:34]} 27. Kf1 {[%emt 0:00:56]} Rxd4 {[%emt 0:00:29]} 28. e6 {[%emt 0:58:25]} Rxd1+ {[%emt 0:04:26]} 29. Rxd1 {[%emt 0:00:00]} Kg8 {[%emt 0:00:41]} 30. Nxc7 {[%emt 0:00:00]} Bh4 {[%emt 0:00:36]} 31. g3 {[%emt 0:00:00]} Bf6 {[%emt 0:06:58]} 32. Nd5 {[%emt 0:00:00]} Rxh2 {[%emt 0:04:12]} 33. Nxf6+ {[%emt 0:00:00]} gxf6 {[%emt 0:00:25]} 34. Rd8+ {[%emt 0:00:00]} Kg7 {[%emt 0:00:20]} 35. e7 {[%emt 0:00:00]} Rh1+ {[%emt 0:00:16]} 36. Kf2 {[%emt 0:00:00]} Rh2+ {[%emt 0:00:09]} 37. Kg1 {[%emt 0:00:00]} Re2 {[%emt 0:00:09]} 38. e8=Q {[%emt 0:00:00]} Rxe8 {[%emt 0:00:09]} 39. Rxe8 {[%emt 0:00:00]} Kf7 {[%emt 0:00:02]} 40. Ra8 {[%emt 0:00:00]} Ke7 {[%emt 0:00:27]} 41. Rxa5 {[%emt 0:00:00]} Ke6 {[%emt 0:00:10]} 42. Rb5 {[%emt 0:00:00]} f5 {[%emt 0:00:05]} 43. a5 {[%emt 0:00:00]} f4 {[%emt 0:00:05]} 44. a6 {[%emt 0:00:00]} fxg3 {[%emt 0:00:07]} 45. a7 {[%emt 0:00:00]} g2 {[%emt 0:00:06]} 46. a8=Q {[%emt 0:00:00]} Kf6 {[%emt 0:00:03]} 47. Qc6+ {[%emt 0:00:00]} Kf7 {[%emt 0:00:32]} 48. Ra5 {[%emt 0:10:00]} 1-0

[Event "FIDE WCCC Open-10 2024"]
[Site "Montesilvano"]
[Date "2024.11.22"]
[Round "7.11"]
[White "Shangin, Lev"]
[Black "Azimov, Yasin"]
[Result "1-0"]
[Annotator "NA RC"]
[ECO "D35"]
[WhiteElo "2056"]
[BlackElo "1759"]
[PlyCount "87"]
[EventDate "2024.11.18"]
[EventType "swiss"]
[EventCountry "ITA"]
[SourceTitle "playchess.com"]
[Source "ChessBase"]
[SourceQuality "1"]
[TimeControl "5400+30"]

1. d4 {[%emt 0:00:50]} d5 {[%emt 0:00:23]} 2. c4 {[%emt 0:00:57]} e6 {[%emt 0:00:14]} 3. Nf3 {[%emt 0:00:42]} Nf6 {[%emt 0:00:07]} 4. Nc3 {[%emt 0:00:31]} Nbd7 {[%emt 0:00:22]} 5. cxd5 {[%emt 0:04:19]} exd5 {[%emt 0:00:17]} 6. Bf4 {[%emt 0:01:08]} c6 {[%emt 0:04:40]} 7. e3 {[%emt 0:04:10]} Bb4 {[%emt 0:03:12]} 8. Qb3 {[%emt 0:05:49]} a5 {[%emt 0:03:05]} 9. a3 {[%emt 0:05:39]} Bxc3+ {[%emt 0:01:38]} 10. Qxc3 {[%emt 0:01:31]} Ne4 {[%emt 0:02:04]} 11. Qc2 {[%emt 0:03:14]} O-O {[%emt 0:03:14]} 12. Bd3 {[%emt 0:01:11]} Re8 $14 {[%emt 0:06:59]} 13. O-O {[%emt 0:03:38]} Ndf6 {[%emt 0:07:17]} 14. h3 {[%emt 0:03:51]} a4 {[%emt 0:08:55]} 15. Ne5 {[%emt 0:05:21]} h6 {[%emt 0:04:38]} 16. Bh2 {[%emt 0:05:04]} Be6 {[%emt 0:19:15]} 17. Rac1 {[%emt 0:07:40]} Qa5 {[%emt 0:03:42]} 18. Rcd1 {[%emt 0:04:47]} Rad8 {[%emt 0:04:04]} 19. Kh1 {[%emt 0:08:57]} Nd6 {[%emt 0:05:22]} 20. Rg1 {[%emt 0:05:32]} Rc8 {[%emt 0:05:34]} 21. Qb1 {[%emt 0:09:59]} c5 {[%emt 0:01:18]} 22. dxc5 {[%emt 0:16:40]} Nde4 {[%emt 0:00:29]} 23. Bxe4 {[%emt 0:00:00]} Nxe4 {[%emt 0:00:18]} 24. Nd3 {[%emt 0:00:00]} Bf5 {[%emt 0:02:03]} 25. Qa2 {[%emt 0:00:00]} Nxc5 {[%emt 0:03:28]} 26. Nxc5 {[%emt 0:00:00]} Rxc5 {[%emt 0:00:06]} 27. Bd6 {[%emt 0:00:00]} Rb5 {[%emt 0:00:15]} 28. Bb4 {[%emt 0:00:00]} Qa6 {[%emt 0:00:58]} 29. b3 {[%emt 0:00:00]} axb3 {[%emt 0:01:29]} 30. Qxb3 {[%emt 0:00:00]} Qe6 {[%emt 0:01:11]} 31. Kh2 {[%emt 0:00:36]} Rc8 {[%emt 0:01:03]} 32. Rd4 {[%emt 0:01:40]} Qe5+ {[%emt 0:03:42]} 33. Kh1 {[%emt 0:00:36]} Be4 {[%emt 0:00:20]} 34. Qd1 {[%emt 0:01:03]} Bc2 {[%emt 0:02:25]} 35. Qg4 {[%emt 0:00:30]} Bf5 {[%emt 0:00:23]} 36. Qh5 {[%emt 0:00:31]} Qf6 {[%emt 0:00:55]} 37. Rf4 {[%emt 0:01:01]} g6 {[%emt 0:00:30]} 38. Qxh6 {[%emt 0:00:20]} Rc2 {[%emt 0:01:00]} 39. f3 {[%emt 0:00:50]} Qg7 {[%emt 0:00:31]} 40. Qg5 {[%emt 0:00:10]} f6 {[%emt 0:00:10]} 41. Qg3 {[%emt 0:00:04]} Rc8 {[%emt 0:02:01]} 42. Rd1 {[%emt 0:00:27]} Bc2 {[%emt 0:00:34]} 43. Rc1 {[%emt 0:00:30]} Rc6 {[%emt 0:00:28]} 44. Rh4 {[%emt 0:00:54]} 1-0

[Event "FIDE WCCC Open-10 2024"]
[Site "Montesilvano"]
[Date "2024.11.22"]
[Round "7.11"]
[White "Kovacs, Balazs"]
[Black "Youn, Laeho"]
[Result "1-0"]
[Annotator "NA RC"]
[ECO "C02"]
[WhiteElo "1871"]
[BlackElo "1520"]
[PlyCount "81"]
[EventDate "2024.11.18"]
[EventType "swiss"]
[EventCountry "ITA"]
[SourceTitle "playchess.com"]
[Source "ChessBase"]
[SourceQuality "1"]
[TimeControl "5400+30"]

1. e4 {[%emt 0:00:04]} e6 {[%emt 0:00:03]} 2. d4 {[%emt 0:00:04]} d5 {[%emt 0:00:05]} 3. e5 {[%emt 0:00:04]} c5 {[%emt 0:00:04]} 4. c3 {[%emt 0:00:04]} Nc6 {[%emt 0:00:05]} 5. Nf3 {[%emt 0:00:05]} cxd4 {[%emt 0:00:32]} 6. cxd4 {[%emt 0:00:08]} Nge7 {[%emt 0:00:05]} 7. Na3 {[%emt 0:00:18]} Nf5 {[%emt 0:00:09]} 8. Nc2 {[%emt 0:00:08]} Qb6 {[%emt 0:00:47]} 9. Bd3 {[%emt 0:00:23] C02: French: Advance Variation.} Bd7 {[%emt 0:00:37]} 10. O-O {[%emt 0:00:17]} Nfxd4 {[%emt 0:01:01]} 11. Nfxd4 {[%emt 0:00:15]} Nxd4 {[%emt 0:00:08]} 12. Be3 {[%emt 0:00:04]} Bc5 {[%emt 0:01:00]} 13. b4 {[%emt 0:00:07]} Qc7 {[%emt 0:03:59]} 14. bxc5 {[%emt 0:01:28]} Nxc2 {[%emt 0:00:17]} 15. Qxc2 {[%emt 0:00:10]} Qxe5 {[%emt 0:00:06]} 16. Rab1 {[%emt 0:08:34]} Bc6 {[%emt 0:01:18]} 17. Rb4 {[%emt 0:15:01]} O-O-O {[%emt 0:01:50]} 18. Bf4 {[%emt 0:01:39]} Qf6 {[%emt 0:00:58]} 19. Bd6 {[%emt 0:03:25]} e5 {[%emt 0:01:11]} 20. Bf5+ {[%emt 0:03:10]} Bd7 {[%emt 0:00:30]} 21. c6 {[%emt 0:08:23]} Bxf5 {[%emt 0:01:55]} 22. cxb7+ {[%emt 0:00:09]} Kd7 {[%emt 0:00:23]} 23. Qc7+ {[%emt 0:00:26]} Ke6 {[%emt 0:01:56]} 24. b8=Q {[%emt 0:01:30]} Rxb8 {[%emt 0:00:24]} 25. Rxb8 {[%emt 0:00:06]} Rxb8 {[%emt 0:00:17]} 26. Qxb8 {[%emt 0:00:07]} Qg6 {[%emt 0:01:08]} 27. Bxe5 {[%emt 0:00:30]} f6 {[%emt 0:03:43]} 28. Qd6+ {[%emt 0:01:07]} Kf7 {[%emt 0:00:08]} 29. Qxd5+ {[%emt 0:04:22]} Be6 {[%emt 0:03:50]} 30. Qb7+ {[%emt 0:00:14]} Ke8 {[%emt 0:00:09]} 31. Bd6 {[%emt 0:01:58]} Qf7 {[%emt 0:01:30]} 32. Qb8+ {[%emt 0:00:48]} Kd7 {[%emt 0:00:13]} 33. Rc1 {[%emt 0:00:51]} Qh5 {[%emt 0:00:35]} 34. Qc8+ {[%emt 0:01:09]} Kxd6 {[%emt 0:00:15]} 35. Qc7+ {[%emt 0:00:04]} Kd5 {[%emt 0:01:02]} 36. Qc5+ {[%emt 0:00:05]} Ke4 {[%emt 0:00:13]} 37. Qxh5 {[%emt 0:00:04]} g6 {[%emt 0:00:39]} 38. Qc5 {[%emt 0:00:25]} Bxa2 {[%emt 0:01:27]} 39. Re1+ {[%emt 0:00:33]} Kd3 {[%emt 0:00:20]} 40. Re3+ {[%emt 0:00:07]} Kd2 {[%emt 0:00:12]} 41. Qc3+ {[%emt 0:00:03]} 1-0